bitfinex/quotes_SOLUSD_20250207
["timestamp","ask_amount","ask_price","bid_price","bid_amount"]
[1738972074113,0.03,192.46,192.43,10.4448282]
[1738972074321,0.03,192.46,192.45,10.4448282]
[1738972075014,0.03,192.46,192.43,10.4448282]
[1738972075417,0.03,192.46,192.44,10.4448282]
[1738972078235,0.03,192.46,192.43,10.4448282]
[1738972079539,0.03,192.46,192.43,15.6414282]
[1738972080934,0.03,192.46,192.42,123.80337862]
[1738972084323,0.03,192.46,192.42,134.24820682]
[1738972085533,0.03,192.46,192.42,10.4448282]
[1738972088453,0.03,192.46,192.42,15.6417282]
[1738972089444,0.03,192.46,192.44,10.4448282]
[1738972089829,0.03,192.46,192.43,10.4448282]
[1738972090030,0.03,192.46,192.42,15.6417282]
[1738972090923,0.03,192.46,192.43,15.6414282]
[1738972093351,0.03,192.46,192.45,10.4448282]
[1738972094741,0.03,192.46,192.45,15.6409282]
[1738972098144,1.6659,192.55,192.45,220.24430682]
[1738972098353,1.6659,192.59,192.53,10.4448282]
[1738972098531,20.0,192.57,192.54,10.4448282]
[1738972098732,1.6659,192.59,192.54,10.4448282]
[1738972099449,13.41184853,192.61,192.54,10.4448282]
[1738972099648,20.0,192.6,192.55,10.4448282]
[1738972099947,25.48925464,192.63,192.55,10.4448282]
[1738972100245,29.04817673,192.62,192.55,15.6379282]
[1738972101148,23.85667673,192.62,192.55,15.6379282]
[1738972101732,13.41184853,192.62,192.55,15.6379282]
[1738972101933,13.41184853,192.62,192.56,10.4448282]
[1738972102328,13.41184853,192.62,192.56,15.6379282]
[1738972102950,13.41184853,192.62,192.56,5.1931]
[1738972104743,23.85667673,192.62,192.56,5.1931]
[1738972105448,10.4448282,192.61,192.56,5.1931]
[1738972105656,10.4448282,192.61,192.55,5.1934]
[1738972106026,10.4448282,192.61,192.51,136.78957862]
[1738972106027,10.4448282,192.59,192.51,134.24820682]
[1738972106226,30.4748282,192.58,192.51,134.24820682]
[1738972106452,30.4748282,192.58,192.52,5.1942]
[1738972107936,35.6674282,192.58,192.52,5.1942]
[1738972108464,35.6674282,192.58,192.51,5.1945]
[1738972109133,10.4448282,192.56,192.48,15.6401282]
[1738972109333,10.4448282,192.56,192.48,139.44350682]
[1738972109562,10.4448282,192.56,192.48,128.99867862]
[1738972109563,10.4448282,192.54,192.48,128.99867862]
[1738972110055,10.4448282,192.55,192.48,128.99867862]
[1738972110257,10.4448282,192.55,192.48,139.44350682]
[1738972110763,10.4448282,192.55,192.48,128.99867862]
[1738972111159,10.4448282,192.55,192.48,139.44350682]
[1738972111963,10.4448282,192.55,192.48,15.6401282]
[1738972114466,30.56557673,192.56,192.49,10.4448282]
[1738972115043,30.56557673,192.56,192.49,15.6398282]
[1738972115343,20.0,192.54,192.5,10.4448282]
[1738972116566,20.0,192.54,192.51,5.1945]
[1738972118366,1.5157,192.56,192.51,5.1945]
[1738972121468,1.5157,192.56,192.5,15.6395282]
[1738972121681,10.4448282,192.57,192.5,15.6395282]
[1738972121847,0.03,192.58,192.56,10.4448282]
[1738972125254,0.03,192.58,192.56,15.6378282]
[1738972126058,0.03,192.58,192.56,139.44120682]
[1738972126268,0.03,192.58,192.57,10.4448282]
[1738972126651,0.03,192.58,192.57,134.24820682]
[1738972126875,0.03,192.58,192.55,10.4448282]
[1738972127059,0.03,192.58,192.54,5.1934]
[1738972127559,0.03,192.58,192.52,10.4448282]
[1738972127881,10.4748282,192.58,192.52,5.194]
[1738972128077,0.03,192.58,192.55,10.4448282]
[1738972128280,0.03,192.58,192.56,5.1931]
[1738972137276,0.03,192.58,192.57,10.4448282]
[1738972137663,0.03,192.58,192.57,15.6377282]
[1738972139084,0.03,192.58,192.56,10.4448282]
[1738972139300,0.03,192.58,192.56,15.6379282]
[1738972142383,0.03,192.58,192.52,10.4448282]
[1738972142562,10.4748282,192.58,192.52,5.1942]
[1738972142763,10.4448282,192.57,192.51,85.9944]
[1738972143185,10.4748282,192.58,192.51,85.9944]
[1738972143883,10.4748282,192.58,192.51,5.1944]
[1738972144267,10.4748282,192.58,192.51,15.6392282]
[1738972145179,0.03,192.58,192.51,15.6392282]
[1738972146387,0.03,192.58,192.53,10.4448282]
[1738972146589,0.03,192.57,192.55,10.4448282]
[1738972147081,0.03,192.57,192.56,10.4448282]
[1738972147272,0.03,192.57,192.56,147.8448282]
[1738972147475,0.03,192.57,192.56,137.4]
[1738972150596,0.03,192.57,192.51,5.1945]
[1738972152206,10.4448282,192.56,192.48,137.4]
[1738972152873,10.4448282,192.55,192.48,137.4]
[1738972153289,10.4448282,192.55,192.49,5.195]
[1738972153488,15.6381282,192.56,192.49,5.195]
[1738972155294,15.6381282,192.56,192.49,15.6398282]
[1738972155497,15.6381282,192.56,192.49,5.195]
[1738972157607,10.4448282,192.55,192.49,5.195]
[1738972159208,15.6381282,192.56,192.49,5.195]
[1738972159705,0.03,192.55,192.49,5.195]
[1738972163106,10.4748282,192.55,192.49,5.195]
[1738972163406,10.4448282,192.53,192.47,5.1955]
[1738972163601,10.4448282,192.52,192.47,5.1955]
[1738972163907,10.4448282,192.53,192.47,5.1955]
[1738972164588,35.6385282,192.54,192.47,5.1955]
[1738972165311,10.4448282,192.53,192.47,5.1955]
[1738972165614,35.6385282,192.54,192.47,5.1955]
[1738972166509,35.6385282,192.54,192.47,15.6403282]
[1738972168405,25.1937,192.54,192.47,15.6403282]
[1738972168610,25.1937,192.54,192.48,15.6400282]
[1738972169111,25.1937,192.54,192.48,5.1952]
[1738972169786,35.6385282,192.54,192.48,5.1952]
[1738972170186,25.1937,192.54,192.48,5.1952]
[1738972171112,20.0,192.53,192.48,15.6400282]
[1738972172613,19.5,192.53,192.48,15.6400282]
[1738972173608,0.03,192.55,192.49,10.4448282]
[1738972173796,0.03,192.55,192.51,10.4448282]
[1738972174702,0.03,192.55,192.47,155.5846]
[1738972174703,0.03,192.55,192.52,15.6390282]
[1738972174883,0.03,192.55,192.53,10.4448282]
[1738972175911,0.03,192.55,192.54,10.4448282]
[1738972177823,0.03,192.55,192.54,15.6385282]
[1738972178110,0.03,192.55,192.54,5.1937]
[1738972178291,0.03,192.55,192.54,15.6385282]
[1738972180315,0.03,192.55,192.54,5.1937]
[1738972181009,0.03,192.55,192.53,137.4]
[1738972182413,10.4748282,192.55,192.5,5.1945]
[1738972183197,30.4748282,192.55,192.5,5.1945]
[1738972183525,30.4748282,192.55,192.48,80.8]
[1738972183526,10.4448282,192.53,192.48,85.995]
[1738972184990,30.4448282,192.54,192.48,85.995]
[1738972185395,20.0,192.54,192.48,85.995]
[1738972185920,30.4448282,192.54,192.48,85.995]
[1738972187720,20.0,192.54,192.48,85.995]
[1738972189510,20.0,192.54,192.48,96.4398282]
[1738972190022,30.4448282,192.54,192.48,85.995]
[1738972191125,10.4448282,192.53,192.46,10.5078282]
[1738972191298,10.4448282,192.51,192.46,0.063]
[1738972191843,10.4448282,192.5,192.46,0.063]
[1738972192501,10.4448282,192.49,192.46,0.063]
[1738972193122,30.4448282,192.5,192.46,0.063]
[1738972193825,20.0,192.5,192.46,0.063]
[1738972197823,10.4448282,192.52,192.46,0.063]
[1738972198030,10.4448282,192.54,192.47,10.4448282]
[1738972199229,5.1937,192.54,192.48,10.4448282]
[1738972199545,15.6385282,192.54,192.47,15.6402282]
[1738972200139,10.4448282,192.53,192.46,15.7036282]
[1738972200934,10.4448282,192.52,192.46,5.2588]
[1738972201119,10.4448282,192.52,192.46,142.6588]
[1738972202843,10.4448282,192.49,192.46,137.463]
[1738972203051,10.4448282,192.49,192.46,0.063]
[1738972203553,10.4448282,192.48,192.46,0.063]
[1738972204732,10.4448282,192.5,192.46,0.063]
[1738972204926,10.4448282,192.49,192.46,0.063]
[1738972206223,15.6399282,192.49,192.46,0.063]
[1738972207533,23.85667673,192.48,192.46,0.063]
[1738972207727,13.41184853,192.48,192.46,0.063]
[1738972208309,10.4448282,192.48,192.46,0.063]
[1738972208815,0.25098,192.48,192.46,0.063]
[1738972209823,10.6958082,192.48,192.46,0.063]
[1738972210840,0.25098,192.48,192.46,0.063]
[1738972215640,23.85667673,192.49,192.46,0.063]
[1738972215842,10.4448282,192.53,192.46,10.5078282]
[1738972216042,0.03,192.54,192.47,10.4448282]
[1738972217047,20.0,192.51,192.47,10.4448282]
[1738972217348,20.0,192.51,192.48,5.1953]
[1738972218019,20.0,192.51,192.48,15.6401282]
[1738972218743,20.0,192.51,192.47,15.6404282]
[1738972218945,20.0,192.51,192.47,153.0404282]
[1738972221900,20.0,192.51,192.47,142.5956]
[1738972224047,20.0,192.51,192.47,137.4]
[1738972224564,20.0,192.51,192.47,142.5955]
[1738972224958,20.0,192.51,192.47,5.1955]
[1738972225460,20.0,192.51,192.46,0.063]
[1738972225667,20.0,192.51,192.46,5.2588]
[1738972227168,20.0,192.51,192.46,15.7036282]
[1738972228955,20.0,192.51,192.46,5.2588]
[1738972230276,20.0,192.5,192.46,5.2588]
[1738972230959,20.0,192.5,192.46,142.6588]
[1738972231778,10.4748282,192.53,192.46,142.6588]
[1738972232159,20.0,192.5,192.46,142.6588]
[1738972237986,20.0,192.48,192.46,0.063]
[1738972242886,35.6402282,192.48,192.46,0.063]
[1738972246273,10.4448282,192.47,192.46,0.063]
[1738972248173,13.41184853,192.46,192.4,5.1974]
[1738972248375,13.41184853,192.46,192.4,15.6422282]
[1738972248772,10.4448282,192.46,192.4,5.1974]
[1738972249294,13.41184853,192.46,192.4,15.6422282]
[1738972249867,13.41184853,192.42,192.38,10.5078282]
[1738972250194,23.85667673,192.42,192.38,0.063]
[1738972250983,5.1972,192.41,192.38,0.063]
[1738972251298,15.6420282,192.41,192.38,0.063]
[1738972252195,23.85667673,192.4,192.38,0.063]
[1738972253393,29.05427673,192.4,192.38,0.063]
[1738972254275,23.85667673,192.39,192.38,0.063]
[1738972254470,25.10765673,192.39,192.38,0.063]
[1738972255577,30.30535673,192.39,192.38,0.063]
[1738972256094,29.30535673,192.39,192.38,0.063]
[1738972257094,5.1969,192.43,192.38,10.5078282]
[1738972257475,10.4448282,192.45,192.38,18.1998282]
[1738972257796,0.03,192.46,192.4,10.4448282]
[1738972258100,20.0,192.44,192.4,10.4448282]
[1738972258300,23.88667673,192.46,192.4,10.4448282]
[1738972258483,23.88667673,192.46,192.39,153.0425282]
[1738972258677,23.88667673,192.46,192.4,5.1974]
[1738972259180,13.41184853,192.44,192.39,137.4]
[1738972259377,10.4448282,192.43,192.38,7.755]
[1738972260384,20.0,192.41,192.38,7.755]
[1738972260603,20.0,192.41,192.38,145.155]
[1738972263288,20.0,192.42,192.38,145.155]
[1738972263608,20.0,192.41,192.38,145.155]
[1738972266010,20.0,192.42,192.38,145.155]
[1738972266211,20.03,192.41,192.38,145.155]
[1738972268503,20.0,192.4,192.38,145.155]
[1738972269414,20.0,192.4,192.38,137.463]
[1738972269597,20.0,192.4,192.38,0.063]
[1738972272012,20.0,192.39,192.38,0.063]
[1738972273514,0.03,192.41,192.38,0.063]
[1738972274021,20.03,192.41,192.38,0.063]
[1738972274222,30.4748282,192.41,192.38,0.063]
[1738972274922,35.6720282,192.41,192.38,0.063]
[1738972275422,10.4448282,192.4,192.38,0.063]
[1738972276514,18.60954853,192.39,192.38,0.063]
[1738972276821,29.05437673,192.39,192.38,0.063]
[1738972279726,29.30535673,192.39,192.38,0.063]
[1738972282124,61.30535673,192.39,192.38,0.0001]
[1738972282320,61.30535673,192.39,192.31,0.063]
[1738972282321,33.66282853,192.32,192.31,0.063]
[1738972282523,44.10765673,192.32,192.31,0.063]
[1738972283212,45.10765673,192.32,192.31,0.063]
[1738972283621,50.30725673,192.32,192.31,0.063]
[1738972285632,51.30725673,192.32,192.31,0.063]
[1738972286333,52.26075506,192.32,192.31,0.0001]
[1738972288624,94.04006786,192.32,192.31,0.0001]
[1738972288933,33.66282853,192.27,192.26,0.063]
[1738972289112,44.10765673,192.27,192.26,0.063]
[1738972289429,45.10765673,192.27,192.26,0.063]
[1738972289831,46.10765673,192.27,192.26,0.063]
[1738972291234,82.26215506,192.27,192.26,0.063]
[1738972292123,15.66282853,192.26,192.25,0.063]
[1738972292430,14.66282853,192.25,192.24,0.063]
[1738972292621,52.25098,192.23,192.18,0.063]
[1738972292827,77.06115506,192.23,192.22,0.0001]
[1738972293211,82.26325506,192.23,192.22,0.0001]
[1738972293821,82.26325506,192.23,192.18,0.063]
[1738972293822,34.66282853,192.19,192.18,0.063]
[1738972294009,46.10765673,192.19,192.18,0.063]
[1738972294219,45.10765673,192.19,192.18,0.063]
[1738972294913,75.10765673,192.19,192.18,0.063]
[1738972295121,31.25098,192.17,192.16,0.063]
[1738972295317,61.26485506,192.17,192.16,0.0001]
[1738972296240,62.26485506,192.17,192.16,0.0001]
[1738972296633,66.36485506,192.17,192.16,0.0001]
[1738972297539,2.25098,192.14,192.11,0.063]
[1738972297736,27.06115506,192.14,192.11,0.063]
[1738972298037,27.06115506,192.14,192.06,0.063]
[1738972298038,1.25098,192.07,192.06,0.063]
[1738972298247,1.25098,192.07,191.99,1.5456]
[1738972298248,0.25098,192.01,191.99,1.5456]
[1738972298455,20.0,191.97,191.95,6.1351]
[1738972298618,10.4448282,192.02,191.95,143.5351]
[1738972298819,20.0,191.99,191.96,10.4448282]
[1738972299429,20.0,191.99,191.95,143.5351]
[1738972299430,20.0,191.99,191.95,153.9799282]
[1738972300040,20.0,191.99,191.96,10.4448282]
[1738972300219,20.0,191.99,191.95,159.1895282]
[1738972300844,10.4448282,192.0,191.95,143.5351]
[1738972301041,20.0,191.97,191.95,143.5351]
[1738972301245,20.0,191.97,191.95,6.1351]
[1738972301746,20.0,191.96,191.95,6.1351]
[1738972302322,20.0,191.96,191.95,6.1981]
[1738972302730,33.41184853,191.96,191.95,6.1981]
[1738972302930,33.41184853,191.96,191.95,0.063]
[1738972307442,1.0,191.95,191.85,6.0829]
[1738972307636,13.41184853,191.85,191.8,8.2321]
[1738972307955,4.1,191.89,191.8,8.2321]
[1738972308136,4.1,191.89,191.8,145.6321]
[1738972308338,20.0,191.85,191.82,10.4448282]
[1738972308849,20.0,191.84,191.81,5.2133]
[1738972309264,20.0,191.84,191.81,15.6581282]
[1738972309741,13.41184853,191.88,191.82,10.4448282]
[1738972310246,13.41184853,191.88,191.83,10.4448282]
[1738972310547,13.41184853,191.88,191.83,15.6576282]
[1738972310750,13.41184853,191.88,191.83,21.52284171]
[1738972311449,13.41184853,191.88,191.83,16.31004171]
[1738972311971,13.41184853,191.88,191.82,21.52324171]
[1738972312142,20.0,191.87,191.83,16.31004171]
[1738972312655,20.0,191.87,191.83,21.52284171]
[1738972313162,34.93289024,191.9,191.83,21.52284171]
[1738972313163,16.31004171,191.9,191.83,158.92284171]
[1738972313330,16.31004171,191.96,191.89,16.31004171]
[1738972313542,16.31004171,191.97,191.9,16.31004171]
[1738972313838,16.31004171,191.97,191.9,17.94794171]
[1738972314041,20.0,191.94,191.9,17.94794171]
[1738972314430,20.0,191.94,191.9,1.6379]
[1738972314938,20.0,191.94,191.9,6.8488]
[1738972315139,13.41184853,191.96,191.9,23.15884171]
[1738972315454,0.063,191.95,191.9,23.15884171]
[1738972315844,0.063,191.95,191.94,16.31004171]
[1738972316750,0.063,191.95,191.94,21.51994171]
[1738972318850,16.31004171,192.05,191.94,171.94484171]
[1738972319151,16.31004171,192.06,191.99,22.90424171]
[1738972319337,13.41184853,192.05,192.0,16.31004171]
[1738972319655,13.41184853,192.05,191.99,22.90424171]
[1738972320152,20.0,192.04,191.99,28.11264171]
[1738972320360,16.31004171,192.1,192.03,16.31004171]
[1738972320545,16.31004171,192.1,192.03,153.71004171]
[1738972320749,20.0,192.05,192.03,137.4]
[1738972321452,20.0,192.06,192.03,137.4]
[1738972322856,16.31004171,192.1,192.03,153.71004171]
[1738972323165,16.31004171,192.12,192.05,16.31004171]
[1738972323359,16.31004171,192.14,192.06,16.31004171]
[1738972323543,13.41184853,192.13,192.06,16.31004171]
[1738972323737,16.31004171,192.17,192.1,16.31004171]
[1738972323949,16.31004171,192.17,192.1,153.71004171]
[1738972324154,13.41184853,192.13,192.1,137.4]
[1738972324341,13.41184853,192.13,192.07,6.0775]
[1738972324342,16.31004171,192.11,192.07,6.0775]
[1738972324544,20.0,192.08,192.07,6.0775]
[1738972325237,13.66282853,192.12,192.07,6.0775]
[1738972325569,16.31004171,192.16,192.08,16.31004171]
[1738972325740,20.0,192.13,192.08,16.31004171]
[1738972326359,16.31004171,192.16,192.09,16.31004171]
[1738972326668,16.31004171,192.12,192.07,143.4775]
[1738972327040,13.41184853,192.13,192.07,143.4775]
[1738972327243,20.0,192.11,192.07,148.6839]
[1738972327962,13.47484853,192.13,192.07,148.6839]
[1738972331562,0.063,192.13,192.07,148.6839]
[1738972331778,13.47484853,192.13,192.07,148.6839]
[1738972331944,20.063,192.13,192.08,16.31004171]
[1738972332144,20.063,192.13,192.12,16.31004171]
[1738972332145,0.063,192.13,192.12,16.31004171]
[1738972332352,0.063,192.13,192.12,153.71004171]
[1738972333154,0.063,192.13,192.12,137.4]
[1738972333649,0.063,192.13,192.09,155.30494171]
[1738972334173,0.063,192.13,192.1,16.31004171]
[1738972334481,0.063,192.13,192.11,16.31004171]
[1738972335657,0.063,192.13,192.12,16.31004171]
[1738972336055,0.063,192.13,192.12,17.09051806]
[1738972336265,0.063,192.13,192.12,28.47151806]
[1738972336463,0.063,192.13,192.12,246.67151806]
[1738972336778,0.063,192.13,192.12,245.89104171]
[1738972337345,0.03,192.23,192.12,258.90374171]
[1738972337550,0.03,192.23,192.22,16.31004171]
[1738972337850,0.03,192.23,192.22,153.71004171]
[1738972338059,0.03,192.23,192.22,137.4]
[1738972338488,0.03,192.23,192.22,142.6023]
[1738972338792,0.03,192.23,192.22,137.4]
[1738972340249,0.03,192.23,192.22,158.91234171]
[1738972341180,0.03,192.23,192.22,157.59434171]
[1738972345982,0.03,192.23,192.22,238.39434171]
[1738972347480,0.063,192.33,192.22,251.40024171]
[1738972347689,16.37304171,192.33,192.26,16.31004171]
[1738972347982,16.37304171,192.33,192.26,233.19204171]
[1738972348680,20.0,192.31,192.28,5.2007]
[1738972349560,0.063,192.33,192.28,5.2007]
[1738972350177,0.063,192.33,192.28,141.2827]
[1738972351387,0.063,192.33,192.28,157.59274171]
[1738972352187,0.063,192.33,192.28,141.2827]
[1738972352695,0.063,192.33,192.28,157.59274171]
[1738972354475,0.063,192.33,192.32,16.31004171]
[1738972354674,0.063,192.33,192.32,152.39204171]
[1738972355277,0.063,192.33,192.32,136.082]
[1738972356971,0.063,192.33,192.29,142.6765]
[1738972357265,0.063,192.33,192.29,164.18674171]
[1738972360282,0.063,192.33,192.29,158.98654171]
[1738972360588,0.063,192.33,192.29,152.39204171]
[1738972360894,0.063,192.33,192.29,157.59234171]
[1738972363671,0.063,192.33,192.31,16.31004171]
[1738972365400,0.063,192.33,192.32,5.1996]
[1738972366484,0.063,192.33,192.31,16.31004171]
[1738972366788,0.063,192.33,192.31,21.50984171]
[1738972367497,0.063,192.33,192.31,157.59184171]
[1738972367995,0.063,192.33,192.31,152.39204171]
[1738972368199,0.063,192.33,192.31,136.082]
[1738972369008,0.063,192.33,192.31,141.2818]
[1738972369495,0.063,192.33,192.31,157.59184171]
[1738972370995,0.063,192.33,192.32,16.31004171]
[1738972371181,0.063,192.33,192.32,233.97170349]
[1738972371377,0.063,192.33,192.32,233.19204171]
[1738972371578,0.063,192.33,192.32,238.39164171]
[1738972371981,0.0001,192.33,192.32,238.39164171]
[1738972375927,0.0001,192.33,192.32,216.882]
[1738972382827,0.0001,192.33,192.32,232.46721775]
[1738972383404,0.0001,192.33,192.32,227.26761775]
[1738972383645,0.03,192.4,192.32,227.26761775]
[1738972383931,0.03,192.4,192.39,10.38561775]
[1738972384140,0.03,192.4,192.39,146.46761775]
[1738972384729,0.03,192.4,192.39,136.082]
[1738972387713,0.03,192.4,192.39,141.2797]
[1738972389924,0.03,192.4,192.39,151.66531775]
[1738972393531,0.03,192.4,192.39,232.46531775]
[1738972407132,0.03,192.41,192.4,1.12549]
[1738972407339,0.0001,192.41,192.4,12.2903032]
[1738972408361,0.0001,192.41,192.4,16.4878032]
[1738972408654,0.0001,192.41,192.4,16.3623132]
[1738972408826,0.0001,192.41,192.4,222.0795]
[1738972409018,0.0001,192.41,192.4,216.882]
[1738972410452,0.0001,192.41,192.4,222.0795]
[1738972417450,0.0001,192.41,192.35,17.10471353]
[1738972417451,10.38571775,192.41,192.36,141.2803]
[1738972417632,10.38561775,192.4,192.36,141.2803]
[1738972417837,10.38561775,192.39,192.36,136.082]
[1738972418324,10.38571775,192.41,192.36,141.2805]
[1738972418851,10.38561775,192.4,192.36,141.2805]
[1738972419033,10.38561775,192.4,192.36,136.082]
[1738972419234,10.38561775,192.38,192.36,136.082]
[1738972420637,10.38561775,192.39,192.36,136.082]
[1738972420951,10.38561775,192.39,192.35,216.882]
[1738972422251,0.0001,192.41,192.36,0.03]
[1738972424355,10.38571775,192.41,192.36,0.03]
[1738972425235,30.38561775,192.4,192.36,0.03]
[1738972425435,20.0,192.4,192.36,0.03]
[1738972426132,10.38571775,192.41,192.36,0.03]
[1738972426960,10.38571775,192.41,192.36,136.112]
[1738972428451,10.38571775,192.41,192.36,141.3105]
[1738972429055,10.38561775,192.39,192.36,136.112]
[1738972429234,30.38561775,192.38,192.36,136.112]
[1738972430341,30.38561775,192.38,192.36,0.03]
[1738972430829,20.0,192.37,192.36,0.03]
[1738972431326,30.38561775,192.37,192.36,0.03]
[1738972431752,43.79746628,192.37,192.36,0.03]
[1738972432351,48.99576628,192.37,192.36,0.03]
[1738972434656,49.24674628,192.37,192.36,0.03]
[1738972436457,48.74674628,192.37,192.36,0.03]
[1738972438156,5.1988,192.35,192.28,216.472]
[1738972438352,10.38561775,192.34,192.28,216.472]
[1738972438556,20.0,192.31,192.28,216.472]
[1738972440542,10.38561775,192.34,192.28,216.472]
[1738972440855,10.38561775,192.39,192.32,10.38561775]
[1738972441057,10.38561775,192.38,192.32,226.85761775]
[1738972441262,20.0,192.35,192.32,216.472]
[1738972444353,15.58311775,192.4,192.33,10.38561775]
[1738972445348,10.38561775,192.4,192.34,10.38561775]
[1738972445744,0.0001,192.41,192.37,10.38561775]
[1738972446046,0.0001,192.41,192.37,146.05761775]
[1738972446247,20.0001,192.41,192.37,146.05761775]
[1738972447378,0.0001,192.41,192.4,10.38561775]
[1738972447668,0.0001,192.41,192.4,226.85761775]
[1738972449468,0.0001,192.41,192.4,216.472]
[1738972450070,0.0001,192.41,192.4,226.85761775]
[1738972450567,0.0001,192.41,192.4,232.05511775]
[1738972454071,0.0001,192.41,192.4,221.6695]
[1738972455870,0.0001,192.41,192.4,232.05511775]
[1738972459070,0.03,192.43,192.4,274.72307875]
[1738972459259,0.03,192.43,192.42,10.38561775]
[1738972459460,0.03,192.43,192.42,226.85761775]
[1738972461067,0.03,192.43,192.42,232.05451775]
[1738972462174,0.03,192.43,192.42,221.6689]
[1738972466580,0.03,192.43,192.42,232.05451775]
[1738972475681,0.03,192.46,192.44,1.12549]
[1738972475874,0.03,192.53,192.45,12.29013003]
[1738972476070,0.03,192.53,192.49,10.38561775]
[1738972476386,0.03,192.53,192.49,227.63662626]
[1738972476587,0.03,192.53,192.49,226.85761775]
[1738972477072,0.03,192.53,192.5,5.1948]
[1738972478680,10.41561775,192.53,192.49,216.472]
[1738972478883,10.38561775,192.5,192.46,135.672]
[1738972479381,10.38561775,192.5,192.46,140.8678]
[1738972480787,10.38561775,192.5,192.46,135.672]
[1738972481085,10.38561775,192.48,192.46,135.672]
[1738972481265,10.38561775,192.48,192.45,216.472]
[1738972484283,10.38561775,192.49,192.45,216.472]
[1738972486883,10.38561775,192.5,192.45,221.668]
[1738972488383,10.38561775,192.51,192.45,221.668]
[1738972489594,10.38561775,192.5,192.45,221.668]
[1738972494073,10.38561775,192.5,192.45,221.698]
[1738972494275,10.44861775,192.5,192.45,221.698]
[1738972494692,10.38561775,192.49,192.45,221.698]
[1738972495287,10.44861775,192.5,192.45,221.698]
[1738972496404,0.063,192.5,192.45,221.698]
[1738972498196,0.063,192.5,192.45,232.08361775]
[1738972498500,0.063,192.5,192.46,10.38561775]
[1738972498681,0.063,192.5,192.45,232.08361775]
[1738972500498,0.063,192.5,192.47,10.38561775]
[1738972500699,0.063,192.5,192.48,10.38561775]
[1738972501006,0.063,192.5,192.49,10.38561775]
[1738972501694,0.063,192.5,192.49,232.05261775]
[1738972502109,0.063,192.5,192.49,216.472]
[1738972502299,10.44861775,192.5,192.49,216.472]
[1738972502599,10.44861775,192.5,192.49,80.8]
[1738972503598,15.64341775,192.5,192.49,80.8]
[1738972507203,20.0,192.47,192.46,0.03]
[1738972509806,10.38561775,192.48,192.46,0.03]
[1738972510611,10.38561775,192.47,192.46,0.03]
[1738972512019,30.38561775,192.47,192.46,0.03]
[1738972512308,35.58121775,192.47,192.46,0.03]
[1738972513098,15.58121775,192.47,192.46,0.03]
[1738972514395,29.24404628,192.47,192.46,0.03]
[1738972514618,20.0,192.42,192.41,0.03]
[1738972514783,44.04844628,192.42,192.41,0.03]
[1738972515214,85.59091728,192.42,192.41,0.0001]
[1738972515407,20.0,192.38,192.32,216.472]
[1738972515588,10.38561775,192.35,192.32,80.8]
[1738972515791,10.38561775,192.34,192.3,135.672]
[1738972519408,10.38561775,192.34,192.3,135.702]
[1738972520515,10.38561775,192.33,192.3,135.702]
[1738972520714,33.41184853,192.38,192.3,135.702]
[1738972520715,30.38561775,192.34,192.3,135.702]
[1738972523618,20.0,192.34,192.3,135.702]
[1738972523919,10.38561775,192.35,192.3,135.702]
[1738972524322,20.0,192.33,192.3,135.702]
[1738972525022,20.0,192.33,192.3,216.502]
[1738972525532,20.0,192.33,192.3,216.002]
[1738972526018,10.38561775,192.34,192.3,216.002]
[1738972526220,20.0,192.33,192.3,216.002]
[1738972527620,10.38561775,192.35,192.3,221.2022]
[1738972528418,10.38561775,192.33,192.3,216.002]
[1738972528625,10.38561775,192.34,192.3,216.002]